lending/lending_fUSD_20240110
["ID","MTS","AMOUNT","RATE_DAILY","PERIOD"]
[311140736,1704929467339,-1012.18,0.00039452,4]
[311140737,1704929467349,-3847.64,0.00039452,4]
[311140738,1704929467358,-1493.63,0.00039452,4]
[311140739,1704929467368,-500.0,0.00039452,4]
[311140740,1704929467378,-500.0,0.00039452,4]
[311140741,1704929467388,-500.0,0.00039452,4]
[311140742,1704929467397,-1517.38,0.00039452,4]
[311140743,1704929467407,-1089.24,0.00039452,4]
[311140744,1704929467417,-500.0,0.00039452,4]
[311140745,1704929467426,-709.16,0.00039452,4]
[311140746,1704929467435,-569.62,0.00039452,4]
[311140747,1704929467445,-500.0,0.00039452,4]
[311140748,1704929467455,-999.05,0.00039452,4]
[311140749,1704929467465,-539.92,0.00039452,4]
[311140750,1704929467475,-500.0,0.00039452,4]
[311140751,1704929467484,-2312.53,0.00039452,4]
[311140752,1704929467495,-1938.93,0.00039452,4]
[311140753,1704929467504,-500.0,0.00039452,4]
[311140754,1704929467514,-500.0,0.00039452,4]
[311140755,1704929467524,-500.0,0.00039452,4]
[311140756,1704929467534,-500.0,0.00039452,4]
[311140757,1704929467544,-500.0,0.00039452,4]
[311140758,1704929467557,-1637.04,0.00039452,4]
[311140759,1704929467569,-500.0,0.00039452,4]
[311140760,1704929467580,-500.0,0.00039452,4]
[311140761,1704929467591,-174.2533173,0.00039452,4]
[311140762,1704929467601,-500.0,0.00039452,4]
[311140763,1704929467611,-918.68,0.00039452,4]
[311140764,1704929467621,-734.84,0.00039452,4]
[311140765,1704929467632,-500.0,0.00039452,4]
[311140766,1704929467642,-500.0,0.00039452,4]
[311140767,1704929467652,-500.0,0.00039452,4]
[311140768,1704929467662,-1045.89,0.00039452,4]
[311140769,1704929467672,-500.0,0.00039452,4]
[311140770,1704929467682,-732.31,0.00039452,4]
[311140771,1704929467692,-500.0,0.00039452,4]
[311140772,1704929467702,-231.75045073,0.00039452,4]
[311140773,1704929467711,-1070.3,0.00039452,4]
[311140774,1704929467721,-500.0,0.00039452,4]
[311140775,1704929467732,-500.0,0.00039452,4]
[311140776,1704929467742,-500.0,0.00039452,4]
[311140777,1704929467753,-760.88,0.00039452,4]
[311140778,1704929467763,-500.0,0.00039452,4]
[311140779,1704929467773,-779.41,0.00039452,4]
[311140780,1704929467783,-1339.65,0.00039452,4]
[311140781,1704929467793,-298.12,0.00039452,4]
[311140782,1704929467807,-500.0,0.00039452,4]
[311140783,1704929467817,-2385.17,0.00039452,4]
[311140784,1704929467834,-500.0,0.00039452,4]
[311140785,1704929467845,-500.0,0.00039452,4]
[311140786,1704929467855,-500.0,0.00039452,4]
[311140787,1704929467867,-151.0,0.00039452,7]
[311140788,1704929467877,-150.0,0.00039492,2]
[311140789,1704929467888,-1424.67234086,0.00039494,2]
[311140790,1704929467898,-965.8947818,0.00039495,2]
[311140791,1704929467908,-666.40111,0.00039498,6]
[311140792,1704929467919,-9767.25,0.000395,7]
[311140793,1704929467929,-12777.6,0.000395,7]
[311140794,1704929467939,-729.23,0.000395,3]
[311140795,1704929467949,-729.23,0.000395,3]
[311140796,1704929467959,-729.23,0.000395,3]
[311140797,1704929467969,-729.23,0.000395,3]
[311140798,1704929467979,-729.23,0.000395,3]
[311140799,1704929467988,-729.23,0.000395,3]
[311140800,1704929467998,-729.23,0.000395,3]
[311140801,1704929468008,-729.23,0.000395,3]
[311140802,1704929468020,-729.23,0.000395,3]
[311140803,1704929468030,-729.23,0.000395,3]
[311140804,1704929468041,-729.23,0.000395,3]
[311140805,1704929468052,-729.23,0.000395,3]
[311140806,1704929468070,-729.23,0.000395,3]
[311140807,1704929468081,-729.23,0.000395,3]
[311140808,1704929468091,-729.23,0.000395,3]
[311140809,1704929468102,-729.23,0.000395,3]
[311140810,1704929468112,-729.23,0.000395,3]
[311140811,1704929468123,-729.23,0.000395,3]
[311140812,1704929468133,-729.23,0.000395,3]
[311140813,1704929468144,-729.23,0.000395,3]
[311140814,1704929468154,-150.0,0.00039541,2]
[311140815,1704929468164,-150.0,0.00039541,2]
[311140816,1704929468174,-150.0,0.00039541,2]
[311140817,1704929468184,-419.15,0.00039557,2]
[311140818,1704929468194,-500.0,0.0003958,2]
[311140819,1704929468203,-150.0,0.00039583,2]
[311140820,1704929468213,-150.0,0.00039587,7]
[311140821,1704929468222,-150.0,0.00039587,7]
[311140822,1704929468231,-666.40111,0.00039598,8]
[311140823,1704929468241,-58000.0,0.000396,5]
[311140824,1704929468250,-2000.0,0.000396,2]
[311140825,1704929468259,-1000.0,0.000396,2]
[311140826,1704929468268,-1000.0,0.000396,2]
[311140827,1704929468277,-3272.74,0.0003963,2]
[311140828,1704929468287,-159.49727413,0.0003969,7]
[311140829,1704929468296,-666.40111,0.00039698,6]
[311140830,1704929468309,-2000.0,0.000397,15]
[311140831,1704929468318,-1000.0,0.000397,2]
[311140832,1704929468327,-20399.04,0.000397,7]
[311140833,1704929468337,-812.56491494,0.000397,2]
[311140834,1704929468360,-7187.43508506,0.000397,2]
[311140835,1704929468369,-152.97219112,0.00039709,7]
[311140836,1704929468378,-500.0,0.00039726,4]
[311140837,1704929468387,-500.0,0.00039726,4]
[311140838,1704929468396,-500.0,0.00039726,2]
[311140839,1704929468405,-644.58,0.00039726,4]
[311140840,1704929468414,-500.0,0.00039726,4]
[311140841,1704929468424,-643.95,0.00039726,4]
[311140842,1704929468433,-500.0,0.00039726,4]
[311140843,1704929468442,-500.0,0.00039726,4]
[311140844,1704929468451,-969.81,0.00039726,4]
[311140845,1704929468460,-500.0,0.00039726,4]
[311140846,1704929468469,-564.71776617,0.00039726,4]
[311140847,1704929468479,-411.0,0.00039726,4]
[311140848,1704929468488,-221.93462193,0.00039726,4]
[311140849,1704929468500,-278.06537807,0.00039726,4]
[311140850,1704929468510,-500.0,0.00039726,4]
[311140851,1704929468519,-500.0,0.00039726,4]
[311140852,1704929468528,-500.0,0.00039726,4]
[311140853,1704929468537,-500.0,0.00039726,2]
[311140854,1704929468546,-500.0,0.00039726,4]
[311140855,1704929468558,-500.0,0.00039726,4]
[311140856,1704929468567,-500.0,0.00039726,4]
[311140857,1704929468576,-500.0,0.00039726,4]
[311140858,1704929468584,-500.0,0.00039726,4]
[311140859,1704929468593,-2076.04,0.00039726,4]
[311140860,1704929468602,-500.0,0.00039726,4]
[311140861,1704929468611,-500.0,0.00039726,4]
[311140862,1704929468620,-500.0,0.00039726,4]
[311140863,1704929468629,-500.0,0.00039726,4]
[311140864,1704929468638,-1000.0,0.00039726,2]
[311140865,1704929468647,-500.0,0.00039726,4]
[311140866,1704929468657,-500.0,0.00039726,4]
[311140867,1704929468666,-500.0,0.00039726,4]
[311140868,1704929468675,-500.0,0.00039726,4]
[311140869,1704929468684,-189.92287098,0.00039726,4]
[311140870,1704929468693,-500.0,0.00039726,4]
[311140871,1704929468702,-500.0,0.00039726,4]
[311140872,1704929468712,-500.0,0.00039726,7]
[311140873,1704929468721,-500.0,0.00039726,4]
[311140874,1704929468730,-500.0,0.00039726,4]
[311140875,1704929468739,-500.0,0.00039726,4]
[311140876,1704929468749,-500.0,0.00039726,4]
[311140877,1704929468758,-500.0,0.00039726,4]
[311140878,1704929468767,-500.0,0.00039726,4]
[311140879,1704929468776,-500.0,0.00039726,4]
[311140880,1704929468785,-500.0,0.00039726,4]
[311140881,1704929468794,-500.0,0.00039726,4]
[311140882,1704929468807,-500.0,0.00039726,4]
[311140883,1704929468816,-500.0,0.00039726,4]
[311140884,1704929468829,-500.0,0.00039726,4]
[311140885,1704929468838,-500.0,0.00039726,4]
[311140886,1704929468847,-500.0,0.00039726,4]
[311140887,1704929468857,-500.0,0.00039726,4]
[311140888,1704929468866,-500.0,0.00039726,4]
[311140889,1704929468877,-500.0,0.00039726,4]
[311140890,1704929468886,-519.42743368,0.00039726,4]
[311140891,1704929468895,-500.0,0.00039726,4]
[311140892,1704929468905,-500.0,0.00039726,4]
[311140893,1704929468916,-500.0,0.00039726,4]
[311140894,1704929468925,-500.0,0.00039726,4]
[311140895,1704929468934,-500.0,0.00039726,4]
[311140896,1704929468944,-627.53,0.00039726,4]
[311140897,1704929468953,-500.0,0.00039726,4]
[311140898,1704929468963,-313.07571892,0.00039726,2]
[311140899,1704929468973,-500.0,0.00039726,4]
[311140900,1704929468982,-500.0,0.00039726,4]
[311140901,1704929468992,-500.0,0.00039726,4]
[311140902,1704929469001,-373.38656836,0.00039726,4]
[311140903,1704929469010,-500.0,0.00039726,4]
[311140904,1704929469020,-500.0,0.00039726,4]
[311140905,1704929469030,-500.0,0.00039726,4]
[311140906,1704929469039,-1391.02,0.00039726,4]
[311140907,1704929469049,-500.0,0.00039726,4]
[311140908,1704929469062,-901.49,0.00039726,4]
[311140909,1704929469071,-287.6,0.00039726,4]
[311140910,1704929469082,-1168.0,0.00039726,4]
[311140911,1704929469091,-500.0,0.00039726,4]
[311140912,1704929469101,-500.0,0.00039726,4]
[311140913,1704929469111,-1104.48,0.00039726,4]
[311140914,1704929469121,-1336.04,0.00039726,4]
[311140915,1704929469131,-500.0,0.00039726,4]
[311140916,1704929469141,-1403.81,0.00039726,4]
[311140917,1704929469150,-500.0,0.00039726,4]
[311140918,1704929469159,-500.0,0.00039726,4]
[311140919,1704929469169,-500.0,0.00039726,4]
[311140920,1704929469178,-500.0,0.00039726,4]
[311140921,1704929469188,-588.64,0.00039726,4]
[311140922,1704929469198,-6847.32,0.00039726,4]
[311140923,1704929469207,-515.78,0.00039726,4]
[311140924,1704929469217,-500.0,0.00039726,4]
[311140925,1704929469226,-500.0,0.00039726,4]
[311140926,1704929469236,-500.0,0.00039726,4]
[311140927,1704929469246,-1442.46,0.00039726,4]
[311140928,1704929469255,-500.0,0.00039726,4]
[311140929,1704929469265,-791.45,0.00039726,4]
[311140930,1704929469274,-500.0,0.00039726,4]
[311140931,1704929469284,-351.22,0.00039726,4]
[311140932,1704929469294,-1371.84,0.00039726,4]
[311140933,1704929469303,-500.0,0.00039726,4]
[311140934,1704929469317,-674.38,0.00039726,4]
[311140935,1704929469327,-1538.87,0.00039726,2]
[311140936,1704929469336,-1538.87,0.00039726,2]
[311140937,1704929469344,-1538.87,0.00039726,2]
[311140938,1704929469354,-1538.87,0.00039726,2]
[311140939,1704929469363,-500.0,0.00039726,4]
[311140940,1704929469372,-1538.87,0.00039726,2]
[311140941,1704929469381,-1538.87,0.00039726,2]
[311140942,1704929469391,-1538.87,0.00039726,2]
[311140943,1704929469400,-1538.87,0.00039726,2]
[311140944,1704929469409,-1538.87,0.00039726,2]
[311140945,1704929469418,-1538.87,0.00039726,2]
[311140946,1704929469427,-1538.87,0.00039726,2]
[311140947,1704929469437,-1538.87,0.00039726,2]
[311140948,1704929469446,-1538.87,0.00039726,2]
[311140949,1704929469455,-1399.35,0.00039726,4]
[311140950,1704929469464,-1538.87,0.00039726,2]
[311140951,1704929469473,-1538.87,0.00039726,2]
[311140952,1704929469483,-1538.87,0.00039726,2]
[311140953,1704929469492,-1538.87,0.00039726,2]
[311140954,1704929469501,-1538.87,0.00039726,2]
[311140955,1704929469510,-1538.87,0.00039726,2]
[311140956,1704929469519,-1538.87,0.00039726,2]
[311140957,1704929469528,-1538.87,0.00039726,2]
[311140958,1704929469537,-1538.87,0.00039726,2]
[311140959,1704929469546,-1538.87,0.00039726,2]
[311140960,1704929469555,-1538.98244632,0.00039726,2]
[311140961,1704929469565,-500.0,0.00039726,4]
[311140962,1704929469575,-500.0,0.00039726,4]
[311140963,1704929469585,-500.0,0.00039726,4]
[311140964,1704929469595,-500.0,0.00039726,4]
[311140965,1704929469604,-500.0,0.00039726,4]
[311140966,1704929469613,-500.0,0.00039726,4]
[311140967,1704929469622,-653.23,0.00039726,4]
[311140968,1704929469632,-500.0,0.00039726,4]
[311140969,1704929469642,-500.0,0.00039726,4]
[311140970,1704929469652,-327.06,0.00039726,4]
[311140971,1704929469661,-500.0,0.00039726,4]
[311140972,1704929469670,-500.0,0.00039726,4]
[311140973,1704929469679,-500.0,0.00039726,4]
[311140974,1704929469689,-694.35,0.00039726,4]
[311140975,1704929469698,-500.0,0.00039726,4]
[311140976,1704929469708,-500.0,0.00039726,4]
[311140977,1704929469717,-500.0,0.00039726,4]
[311140978,1704929469726,-500.0,0.00039726,4]
[311140979,1704929469736,-500.0,0.00039726,4]
[311140980,1704929469746,-500.0,0.00039726,4]
[311140981,1704929469755,-500.0,0.00039726,4]
[311140982,1704929469764,-518.11521031,0.00039726,4]
[311140983,1704929469774,-800.64,0.00039726,4]
[311140984,1704929469783,-545.35,0.00039726,4]
[311140985,1704929469792,-1377.63,0.00039726,4]
[311140986,1704929469803,-986.83,0.00039726,4]
[311140987,1704929469815,-1114.48,0.00039726,4]
[311140988,1704929469828,-500.0,0.00039726,4]
[311140989,1704929469838,-2234.62,0.00039726,4]
[311140990,1704929469848,-887.56,0.00039726,4]
[311140991,1704929469858,-2704.03,0.00039726,4]
[311140992,1704929469869,-662.58,0.00039726,4]
[311140993,1704929469879,-500.0,0.00039726,4]
[311140994,1704929469888,-562.06,0.00039726,4]
[311140995,1704929469899,-500.0,0.00039726,4]
[311140996,1704929469908,-500.0,0.00039726,4]
[311140997,1704929469918,-500.0,0.00039726,4]
[311140998,1704929469927,-500.0,0.00039726,4]
[311140999,1704929469937,-244.97719504,0.00039726,4]
[311141000,1704929469946,-669.07,0.00039726,4]
[311141001,1704929469955,-1960.32,0.00039726,4]
[311141002,1704929469965,-500.0,0.00039726,4]
[311141003,1704929469974,-1476.13,0.00039726,4]
[311141004,1704929469984,-967.46,0.00039726,4]
[311141005,1704929469993,-508.27,0.00039726,4]
[311141006,1704929470003,-295.3,0.00039726,4]
[311141007,1704929470013,-555.46,0.00039726,4]
[311141008,1704929470022,-670.39,0.00039726,4]
[311141009,1704929470031,-500.0,0.00039726,4]
[311141010,1704929470041,-500.0,0.00039726,4]
[311141011,1704929470050,-1108.5,0.00039726,4]
[311141012,1704929470062,-1012.18,0.00039726,4]
[311141013,1704929470071,-3847.64,0.00039726,4]
[311141014,1704929470081,-1493.63,0.00039726,4]
[311141015,1704929470090,-500.0,0.00039726,4]
[311141016,1704929470099,-500.0,0.00039726,4]
[311141017,1704929470108,-500.0,0.00039726,4]
[311141018,1704929470117,-1517.38,0.00039726,4]
[311141019,1704929470127,-1089.24,0.00039726,4]
[311141020,1704929470136,-500.0,0.00039726,4]
[311141021,1704929470146,-709.16,0.00039726,4]
[311141022,1704929470156,-500.0,0.00039726,4]
[311141023,1704929470165,-999.05,0.00039726,4]
[311141024,1704929470174,-539.92,0.00039726,4]
[311141025,1704929470184,-500.0,0.00039726,4]
[311141026,1704929470193,-2312.53,0.00039726,4]
[311141027,1704929470203,-1938.93,0.00039726,4]
[311141028,1704929470212,-500.0,0.00039726,4]
[311141029,1704929470222,-500.0,0.00039726,4]
[311141030,1704929470231,-500.0,0.00039726,4]
[311141031,1704929470241,-500.0,0.00039726,4]
[311141032,1704929470250,-500.0,0.00039726,4]
[311141033,1704929470260,-1637.04,0.00039726,4]
[311141034,1704929470270,-500.0,0.00039726,4]
[311141035,1704929470280,-500.0,0.00039726,4]
[311141036,1704929470290,-500.0,0.00039726,4]
[311141037,1704929470300,-918.68,0.00039726,4]
[311141038,1704929470314,-734.84,0.00039726,4]
[311141039,1704929470325,-500.0,0.00039726,4]
[311141040,1704929470478,-500.0,0.00039726,4]
[311141041,1704929470488,-391.03,0.00039726,4]
[311141042,1704929470499,-1045.89,0.00039726,4]
[311141043,1704929470510,-420.96,0.00039726,4]
[311141044,1704929470521,-732.31,0.00039726,4]
[311141045,1704929470531,-500.0,0.00039726,4]
[311141046,1704929470542,-1070.3,0.00039726,4]
[311141047,1704929470552,-500.0,0.00039726,4]
[311141048,1704929470570,-500.0,0.00039726,4]
[311141049,1704929470581,-500.0,0.00039726,4]
[311141050,1704929470591,-760.88,0.00039726,4]
[311141051,1704929470603,-500.0,0.00039726,4]
[311141052,1704929470613,-779.41,0.00039726,4]
[311141053,1704929470624,-1339.65,0.00039726,4]
[311141054,1704929470635,-2385.17,0.00039726,4]
[311141055,1704929470646,-500.0,0.00039726,4]
[311141056,1704929470656,-500.0,0.00039726,4]
[311141057,1704929470668,-500.0,0.00039726,4]
[311141058,1704929470680,-500.0,0.00039726,4]
[311141059,1704929470690,-504.45407,0.0003974,2]
[311141060,1704929470701,-204.0,0.00039742,27]
[311141061,1704929470711,-666.40111,0.00039798,8]
[311141062,1704929470721,-9767.25,0.000398,7]
[311141063,1704929470730,-12777.6,0.000398,7]
[311141064,1704929470740,-207.0,0.0003988,2]
[311141065,1704929470749,-213.0,0.0003988,2]
[311141066,1704929470758,-208.0,0.0003988,2]
[311141067,1704929470768,-150.0,0.00039885,7]
[311141068,1704929470778,-600.0,0.00039894,31]
[311141069,1704929470787,-169.7979624,0.00039897,2]
[311141070,1704929470796,-313.87538666,0.00039898,4]
[311141071,1704929470808,-666.40111,0.00039898,6]
[311141072,1704929470818,-155.0,0.00039899,4]
[311141073,1704929470830,-90535.57438674,0.000399,7]
[311141074,1704929470839,-150.0,0.000399,10]
[311141075,1704929470849,-99964.999999,0.000399,2]
[311141076,1704929470858,-1000.0,0.000399,2]
[311141077,1704929470869,-1012.93513924,0.000399,30]
[311141078,1704929470878,-350.00008253,0.000399,4]
[311141079,1704929470889,-42928.09196788,0.000399,7]
[311141080,1704929470898,-48119.23524544,0.000399,30]
[311141081,1704929470908,-3780.03629919,0.000399,4]
[311141082,1704929470918,-223.64175143,0.000399,13]
[311141083,1704929470927,-154.949637,0.000399,11]
[311141084,1704929470936,-2001.58,0.000399,2]
[311141085,1704929470946,-1815.990009,0.000399,11]
[311141086,1704929470955,-151.0,0.000399,7]
[311141087,1704929470965,-301.62,0.000399,2]
[311141088,1704929470974,-153.0075437,0.0003991,2]
[311141089,1704929470984,-50000.0,0.00039911,30]
[311141090,1704929470994,-152.97219112,0.00039927,7]
[311141091,1704929471003,-906.65152406,0.00039927,13]
[311141092,1704929471012,-999.0,0.0003994,2]
[311141093,1704929471022,-10000.0,0.00039943,30]
[311141094,1704929471031,-5000.0,0.00039944,6]
[311141095,1704929471040,-999.0,0.0003995,2]
[311141096,1704929471050,-999.0,0.0003996,2]
[311141097,1704929471061,-246.77830282,0.00039975,31]
[311141098,1704929471070,-450.0,0.0003998,3]
[311141099,1704929471079,-478.72640826,0.0003998,3]
[311141100,1704929471088,-18374.76998323,0.0003998,2]
[311141101,1704929471098,-151.0,0.00039986,2]
[311141102,1704929471107,-250.49088,0.00039986,2]
[311141103,1704929471116,-300.0,0.00039987,2]
[311141104,1704929471125,-300.0,0.00039987,3]
[311141105,1704929471134,-200.0,0.00039987,6]
[311141106,1704929471144,-209.0,0.0003999,2]
[311141107,1704929471153,-210.0,0.0003999,2]
[311141108,1704929471162,-209.0,0.0003999,2]
[311141109,1704929471175,-210.0,0.0003999,2]
[311141110,1704929471184,-2001.58,0.0003999,2]
[311141111,1704929471193,-7995.0,0.0003999,3]
[311141112,1704929471203,-9113.15828334,0.00039995,4]
[311141113,1704929471212,-196.33714214,0.00039996,4]
[311141114,1704929471221,-155.25287291,0.00039997,4]
[311141115,1704929471230,-666.40111,0.00039998,8]
[311141116,1704929471239,-99307.1138974,0.0004,3]
[311141117,1704929471422,-524.84263645,0.0004,3]
[311141118,1704929471441,-168.04346615,0.0004,3]
[311141119,1704929471451,-151.0,0.0004,7]
[311141120,1704929471461,-1054.28461793,0.0004,10]
[311141121,1704929471471,-1329.95946562,0.0004,4]
[311141122,1704929471514,-355.47183999,0.0004,4]
[311141123,1704929471526,-325.39435214,0.0004,4]
[311141124,1704929471539,-5655.09936312,0.0004,4]
[311141125,1704929471551,-10221.16517317,0.0004,4]
[311141126,1704929471566,-16188.24772307,0.0004,4]
[311141127,1704929471580,-1028.736674,0.0004,4]
[311141128,1704929471768,-155.0,0.00037999,4]
[311141129,1704929471780,-196.1590829,0.00037999,2]
[311141130,1704929471791,-1357.75,0.00038356,4]
[311141131,1704929471802,-500.0,0.0003863,4]
[311141132,1704929471815,-1357.75,0.0003863,4]
[311141133,1704929471829,-1357.75,0.00038904,4]
[311141134,1704929471839,-197.57045409,0.00038999,4]
[311141135,1704929471849,-500.0,0.00038999,4]
[311141136,1704929471859,-500.0,0.00038999,4]
[311141137,1704929471870,-500.0,0.00038999,4]
[311141138,1704929471880,-176.20498149,0.00038999,4]
[311141139,1704929471890,-258.49612934,0.00038999,4]
[311141140,1704929471900,-234.14279297,0.00038999,4]
[311141141,1704929471911,-1357.75,0.00039178,4]
[311141142,1704929471922,-509.44,0.00039452,4]
[311141143,1704929471933,-1357.75,0.00039452,4]
[311141144,1704929471942,-1357.75,0.00039726,4]
[311141145,1704929471952,-181.82810528,0.00039999,7]
[311141146,1704929471962,-440.48567578,0.00039999,7]
[311141147,1704929471972,-507.15373612,0.00039999,7]
[311141148,1704929471982,-10662.28982901,0.0004,4]
[311141149,1704929472003,-568.87209701,0.00039999,7]
[311141150,1704929472013,-8435.56290265,0.0004,4]
[311141151,1704929472022,-223.60576951,0.0004,4]
[311141152,1704929472032,-506.84174,0.0004,30]
[311141153,1704929472041,-3655.26991785,0.0004,15]
[311141154,1704929472060,-379128.11252945,0.0004,15]
[311141155,1704929472072,-800.97931648,0.0004,15]
[311141156,1704929472094,-103783.29367593,0.0004,15]
[311141157,1704929472104,-819.36261273,0.0004,7]
[311141158,1704929472115,-2004.49327404,0.0004,4]
[311141159,1704929472125,-1000.0,0.0004,2]
[311141160,1704929472136,-25766.877053,0.0004,9]
[311141161,1704929472147,-2042.48202598,0.0004,7]
[311141162,1704929472158,-630.11021267,0.0004,2]
[311141163,1704929472169,-290.61920296,0.0004,2]
[311141164,1704929472180,-500.0,0.0004,21]
[311141165,1704929472192,-11695.97,0.0004,21]
[311141166,1704929472203,-8689.0,0.0004,7]
[311141167,1704929472215,-1000.0,0.0004,10]
[311141168,1704929472226,-3895.72900469,0.0004,2]
[311141169,1704929472237,-903.22499607,0.0004,30]
[311141170,1704929472248,-500.0,0.0004,30]
[311141171,1704929472258,-12161.97103844,0.0004,2]
[311141172,1704929472268,-469.145,0.0004,2]
[311141173,1704929472279,-155.0,0.0004,3]
[311141174,1704929472292,-2232.0,0.0004,30]
[311141175,1704929472302,-600.0,0.0004,41]
[311141176,1704929472315,-1687.99,0.0004,14]
[311141177,1704929472326,-2170.40063954,0.0004,2]
[311141178,1704929472336,-472.99131819,0.0004,2]
[311141179,1704929472346,-178360.0,0.0004,10]
[311141180,1704929472355,-33470.88,0.0004,10]
[311141181,1704929472365,-1609.0,0.0004,30]
[311141182,1704929472376,-18538.61471009,0.0004,5]
[311141183,1704929472385,-150.0,0.0004,2]
[311141184,1704929472395,-657.39016379,0.0004,10]
[311141185,1704929472405,-91351.29103953,0.0004,2]
[311141186,1704929472415,-2000.0,0.0004,30]
[311141187,1704929472425,-1244.0,0.0004,20]
[311141188,1704929472436,-421.0,0.0004,30]
[311141189,1704929472446,-1309.0,0.0004,2]
[311141190,1704929472455,-659.5808296,0.0004,4]
[311141191,1704929472465,-2024.0,0.0004,15]
[311141192,1704929472476,-500.0,0.0004,4]
[311141193,1704929472486,-255.0,0.0004,12]
[311141194,1704929472496,-255.0,0.0004,12]
[311141195,1704929472506,-500.0,0.0004,4]
[311141196,1704929472516,-500.0,0.0004,2]
[311141197,1704929472525,-500.0,0.0004,4]
[311141198,1704929472535,-643.95,0.0004,4]
[311141199,1704929472545,-500.0,0.0004,4]
[311141200,1704929472556,-500.0,0.0004,4]
[311141201,1704929472571,-255.0,0.0004,12]
[311141202,1704929472582,-2000.0,0.0004,3]
[311141203,1704929472592,-969.81,0.0004,4]
[311141204,1704929472602,-353.77,0.0004,4]
[311141205,1704929472613,-2762.7095972,0.0004,2]
[311141206,1704929472623,-2243.9393401,0.0004,2]
[311141207,1704929472633,-1725.1690829,0.0004,2]
[311141208,1704929472644,-1206.3988258,0.0004,2]
[311141209,1704929472654,-687.6285686,0.0004,2]
[311141210,1704929472664,-168.8583115,0.0004,2]
[311141211,1704929472678,-184.58949923,0.0004,30]
[311141212,1704929472688,-500.0,0.0004,4]
[311141213,1704929472698,-500.0,0.0004,4]
[311141214,1704929472708,-500.0,0.0004,4]
[311141215,1704929472718,-500.0,0.0004,4]
[311141216,1704929472728,-500.0,0.0004,7]
[311141217,1704929472738,-542.20427872,0.0004,2]
[311141218,1704929472748,-500.0,0.0004,4]
[311141219,1704929472758,-500.0,0.0004,4]
[311141220,1704929472768,-614.80187033,0.0004,4]
[311141221,1704929472778,-500.0,0.0004,7]
[311141222,1704929472788,-500.0,0.0004,7]
[311141223,1704929472798,-500.0,0.0004,4]
[311141224,1704929472809,-500.0,0.0004,4]
[311141225,1704929472820,-2076.04,0.0004,4]
[311141226,1704929472835,-500.0,0.0004,4]
[311141227,1704929472844,-500.0,0.0004,4]
[311141228,1704929472854,-326.05,0.0004,4]
[311141229,1704929472867,-500.0,0.0004,4]
[311141230,1704929472881,-1000.0,0.0004,2]
[311141231,1704929472898,-500.0,0.0004,4]
[311141232,1704929472908,-500.0,0.0004,4]
[311141233,1704929472918,-500.0,0.0004,4]
[311141234,1704929472927,-344.01,0.0004,4]
[311141235,1704929472937,-500.0,0.0004,4]